fUSD/lending_fUSD_20260610
["ID","MTS","AMOUNT","RATE_DAILY","PERIOD"]
[424656129,1781034677000,-1000.0,0.00032877,10]
[424656090,1781034677000,-202.700081,0.00032797,14]
[424656110,1781034677000,-1000.0,0.00032876,30]
[424656109,1781034677000,-1000.0,0.00032876,30]
[424656119,1781034677000,-1013.15212249,0.00032876,30]
[424656106,1781034677000,-1000.0,0.00032876,30]
[424656104,1781034677000,-1000.0,0.00032874,14]
[424656088,1781034677000,-250.0,0.00032785,2]
[424656091,1781034677000,-279.82,0.000328,2]
[424656092,1781034677000,-164.6,0.000328,2]
[424656089,1781034677000,-179.97120458,0.00032795,2]
[424656093,1781034677000,-4926.96287399,0.000328,2]
[424656130,1781034677000,-1000.0,0.00032877,10]
[424656097,1781034677000,-300.0,0.00032846,30]
[424656094,1781034677000,-557.24,0.000328,20]
[424656096,1781034677000,-788.19,0.00032816,30]
[424656086,1781034677000,-5000.0,0.00032785,2]
[424656100,1781034677000,-406.71313512,0.0003287,120]
[424656101,1781034677000,-150.0,0.00032874,30]
[424656098,1781034677000,-300.0,0.00032846,30]
[424656102,1781034677000,-245.0,0.00032874,30]
[424656105,1781034677000,-1000.0,0.00032876,30]
[424656108,1781034677000,-1000.0,0.00032876,30]
[424656107,1781034677000,-1000.0,0.00032876,30]
[424656103,1781034677000,-1002.5091603,0.00032874,2]
[424656099,1781034677000,-204.0,0.0003286,30]
[424656154,1781034678000,-1000.0,0.00032877,10]
[424656162,1781034678000,-1000.0,0.00032877,10]
[424656158,1781034678000,-1000.0,0.00032877,10]
[424656160,1781034678000,-1000.0,0.00032877,10]
[424656159,1781034678000,-1000.0,0.00032877,10]
[424656155,1781034678000,-1000.0,0.00032877,10]
[424656156,1781034678000,-1000.0,0.00032877,10]
[424656165,1781034678000,-1000.0,0.00032877,10]
[424656157,1781034678000,-1000.0,0.00032877,10]
[424656161,1781034678000,-1000.0,0.00032877,10]
[424656167,1781034678000,-1000.0,0.00032877,10]
[424656168,1781034678000,-1000.0,0.00032877,10]
[424656166,1781034678000,-1000.0,0.00032877,10]
[424656164,1781034678000,-1000.0,0.00032877,10]
[424656169,1781034678000,-1000.0,0.00032877,10]
[424656170,1781034678000,-1000.0,0.00032877,10]
[424656174,1781034678000,-1000.0,0.00032877,10]
[424656173,1781034678000,-1000.0,0.00032877,10]
[424656175,1781034678000,-1000.0,0.00032877,10]
[424656163,1781034678000,-1000.0,0.00032877,10]
[424656153,1781034678000,-1000.0,0.00032877,10]
[424656131,1781034678000,-1000.0,0.00032877,10]
[424656148,1781034678000,-1000.0,0.00032877,10]
[424656172,1781034678000,-1000.0,0.00032877,10]
[424656134,1781034678000,-1000.0,0.00032877,10]
[424656132,1781034678000,-1000.0,0.00032877,10]
[424656133,1781034678000,-1000.0,0.00032877,10]
[424656135,1781034678000,-1000.0,0.00032877,10]
[424656136,1781034678000,-1000.0,0.00032877,10]
[424656137,1781034678000,-1000.0,0.00032877,10]
[424656139,1781034678000,-1000.0,0.00032877,10]
[424656140,1781034678000,-1000.0,0.00032877,10]
[424656151,1781034678000,-1000.0,0.00032877,10]
[424656142,1781034678000,-1000.0,0.00032877,10]
[424656141,1781034678000,-1000.0,0.00032877,10]
[424656138,1781034678000,-1000.0,0.00032877,10]
[424656144,1781034678000,-1000.0,0.00032877,10]
[424656147,1781034678000,-1000.0,0.00032877,10]
[424656146,1781034678000,-1000.0,0.00032877,10]
[424656150,1781034678000,-1000.0,0.00032877,10]
[424656149,1781034678000,-1000.0,0.00032877,10]
[424656145,1781034678000,-1000.0,0.00032877,10]
[424656152,1781034678000,-1000.0,0.00032877,10]
[424656143,1781034678000,-1000.0,0.00032877,10]
[424656176,1781034678000,-1000.0,0.00032877,10]
[424656171,1781034678000,-1000.0,0.00032877,10]
[424656183,1781034678000,-1000.0,0.00032877,10]
[424656204,1781034678000,-236.697592,0.00032877,7]
[424656206,1781034678000,-236.697592,0.00032877,7]
[424656203,1781034678000,-236.697592,0.00032877,7]
[424656200,1781034678000,-236.697592,0.00032877,7]
[424656202,1781034678000,-236.697592,0.00032877,7]
[424656207,1781034678000,-236.697592,0.00032877,7]
[424656208,1781034678000,-236.697592,0.00032877,7]
[424656205,1781034678000,-236.697592,0.00032877,7]
[424656218,1781034678000,-500.0,0.00032877,2]
[424656212,1781034678000,-236.697592,0.00032877,7]
[424656220,1781034678000,-500.0,0.00032877,2]
[424656213,1781034678000,-236.697592,0.00032877,7]
[424656215,1781034678000,-151.000015,0.00032877,7]
[424656217,1781034678000,-1000.0,0.00032877,120]
[424656211,1781034678000,-236.697592,0.00032877,7]
[424656214,1781034678000,-236.697583,0.00032877,7]
[424656216,1781034678000,-1000.0,0.00032877,10]
[424656222,1781034678000,-500.0,0.00032877,2]
[424656221,1781034678000,-500.0,0.00032877,2]
[424656177,1781034678000,-1000.0,0.00032877,10]
[424656223,1781034678000,-500.0,0.00032877,2]
[424656198,1781034678000,-236.697592,0.00032877,7]
[424656201,1781034678000,-236.697592,0.00032877,7]
[424656219,1781034678000,-500.0,0.00032877,2]
[424656209,1781034678000,-236.697592,0.00032877,7]
[424656184,1781034678000,-1000.0,0.00032877,10]
[424656179,1781034678000,-1000.0,0.00032877,10]
[424656210,1781034678000,-236.697592,0.00032877,7]
[424656180,1781034678000,-1000.0,0.00032877,10]
[424656181,1781034678000,-1000.0,0.00032877,10]
[424656185,1781034678000,-351.31,0.00032877,2]
[424656182,1781034678000,-1000.0,0.00032877,10]
[424656187,1781034678000,-151.0,0.00032877,7]
[424656197,1781034678000,-236.697592,0.00032877,7]
[424656192,1781034678000,-151.0,0.00032877,7]
[424656178,1781034678000,-1000.0,0.00032877,10]
[424656194,1781034678000,-815.39,0.00032877,2]
[424656189,1781034678000,-151.0,0.00032877,7]
[424656186,1781034678000,-751.93092557,0.00032877,2]
[424656196,1781034678000,-236.697592,0.00032877,7]
[424656199,1781034678000,-236.697592,0.00032877,7]
[424656193,1781034678000,-205.377969,0.00032877,7]
[424656191,1781034678000,-151.0,0.00032877,7]
[424656188,1781034678000,-151.0,0.00032877,7]
[424656190,1781034678000,-151.0,0.00032877,7]
[424656195,1781034678000,-236.697592,0.00032877,7]
[424656263,1781034679000,-160.0,0.00033016,11]
[424656261,1781034679000,-4046.0,0.00033012,10]
[424656260,1781034679000,-3000.0,0.00033,3]
[424656262,1781034679000,-312.0,0.00033012,3]
[424656254,1781034679000,-200.0,0.00033,12]
[424656257,1781034679000,-37480.25012712,0.00033,10]
[424656251,1781034679000,-2924.53745173,0.00032978,36]
[424656249,1781034679000,-1000.0,0.00032957,30]
[424656253,1781034679000,-163.0,0.0003298,60]
[424656258,1781034679000,-230.005364,0.00033,14]
[424656259,1781034679000,-251.201185,0.00033,120]
[424656267,1781034679000,-5000.0,0.00033047,2]
[424656274,1781034679000,-150.0,0.0003308,2]
[424656264,1781034679000,-8065.38510303,0.00033047,2]
[424656265,1781034679000,-5000.0,0.00033047,2]
[424656268,1781034679000,-5000.0,0.00033047,2]
[424656278,1781034679000,-150.0,0.0003308,2]
[424656269,1781034679000,-244.75,0.00033057,14]
[424656270,1781034679000,-1000.0,0.0003307,2]
[424656272,1781034679000,-2324.0,0.0003307,11]
[424656275,1781034679000,-150.0,0.0003308,2]
[424656271,1781034679000,-500.0,0.0003307,2]
[424656273,1781034679000,-150.0,0.0003308,2]
[424656277,1781034679000,-150.0,0.0003308,2]
[424656255,1781034679000,-52352.93234586,0.00033,2]
[424656266,1781034679000,-5000.0,0.00033047,2]
[424656252,1781034679000,-160.0,0.0003298,60]
[424656232,1781034679000,-738.74663981,0.00032882,5]
[424656248,1781034679000,-504.97405917,0.00032955,2]
[424656276,1781034679000,-150.0,0.0003308,2]
[424656224,1781034679000,-306.88,0.00032877,120]
[424656226,1781034679000,-150.0,0.00032877,2]
[424656234,1781034679000,-2033.07,0.000329,120]
[424656225,1781034679000,-428.55797723,0.00032877,2]
[424656230,1781034679000,-2024.08696035,0.00032881,30]
[424656227,1781034679000,-1205.772643,0.00032877,120]
[424656231,1781034679000,-3328.71680134,0.00032881,30]
[424656229,1781034679000,-6465.80478824,0.00032881,30]
[424656228,1781034679000,-166.6875,0.00032877,2]
[424656233,1781034679000,-182.600014,0.00032882,5]
[424656237,1781034679000,-203.91667364,0.0003294,30]
[424656235,1781034679000,-285.58,0.000329,120]
[424656243,1781034679000,-150.0,0.00032955,2]
[424656242,1781034679000,-150.0,0.00032955,2]
[424656236,1781034679000,-188.77,0.000329,30]
[424656244,1781034679000,-289.56177625,0.00032955,2]
[424656239,1781034679000,-407.0,0.00032955,2]
[424656238,1781034679000,-1000.0,0.00032952,30]
[424656241,1781034679000,-426.21033715,0.00032955,2]
[424656240,1781034679000,-407.0,0.00032955,2]
[424656246,1781034679000,-500.0,0.00032955,2]
[424656256,1781034679000,-1610.05429725,0.00033,30]
[424656245,1781034679000,-500.0,0.00032955,2]
[424656247,1781034679000,-500.0,0.00032955,2]
[424656250,1781034679000,-1000.0,0.00032968,30]
[424656279,1781034679000,-160.0,0.00033083,11]
[424656319,1781034679000,-1068.04792696,0.00033138,2]
[424656287,1781034679000,-889.060574,0.000331,11]
[424656310,1781034679000,-161.01892363,0.00033123,120]
[424656309,1781034679000,-500.0,0.00033123,120]
[424656314,1781034679000,-2299.9,0.0003313,120]
[424656324,1781034679000,-1126.50971957,0.00033138,2]
[424656318,1781034679000,-1146.42949959,0.00033138,2]
[424656315,1781034679000,-200.0,0.0003313,4]
[424656323,1781034679000,-1105.95788543,0.00033138,2]
[424656313,1781034679000,-1181.13,0.00033126,30]
[424656317,1781034679000,-1996.43768981,0.00033138,2]
[424656322,1781034679000,-1255.70739876,0.00033138,2]
[424656320,1781034679000,-1081.71675285,0.00033138,2]
[424656321,1781034679000,-1469.78898648,0.00033138,2]
[424656326,1781034679000,-2324.0,0.00033148,11]
[424656336,1781034679000,-1881.93238763,0.0003316,2]
[424656328,1781034679000,-1207.43863075,0.00033155,2]
[424656331,1781034679000,-1868.69013542,0.0003316,2]
[424656327,1781034679000,-1240.49280844,0.00033155,2]
[424656333,1781034679000,-1330.4629238,0.0003316,2]
[424656334,1781034679000,-2739.86894809,0.0003316,2]
[424656330,1781034679000,-1678.00704075,0.0003316,2]
[424656325,1781034679000,-179.97120458,0.00033143,2]
[424656335,1781034679000,-1416.76004782,0.0003316,2]
[424656332,1781034679000,-3334.19952991,0.0003316,2]
[424656329,1781034679000,-2081.52,0.00033155,14]
[424656288,1781034679000,-3551.57987969,0.000331,2]
[424656308,1781034679000,-250.0,0.00033116,2]
[424656307,1781034679000,-5000.0,0.00033116,2]
[424656316,1781034679000,-350.0,0.00033136,28]
[424656304,1781034679000,-530.01586253,0.00033102,30]
[424656302,1781034679000,-500.0,0.00033102,30]
[424656283,1781034679000,-200.0,0.00033084,13]
[424656284,1781034679000,-200.0,0.00033084,13]
[424656280,1781034679000,-155.68,0.00033084,13]
[424656285,1781034679000,-1000.0,0.00033085,30]
[424656282,1781034679000,-155.69,0.00033084,13]
[424656286,1781034679000,-160.0,0.00033096,11]
[424656290,1781034679000,-195.042,0.000331,28]
[424656289,1781034679000,-2844.53553574,0.000331,2]
[424656292,1781034679000,-1521.509571,0.000331,11]
[424656293,1781034679000,-2633.91475599,0.000331,2]
[424656291,1781034679000,-200.0,0.000331,7]
[424656298,1781034679000,-12947.31345511,0.00033102,2]
[424656281,1781034679000,-155.68,0.00033084,13]
[424656306,1781034679000,-300.0,0.00033103,14]
[424656296,1781034679000,-500.0,0.00033102,60]
[424656294,1781034679000,-511.53454058,0.00033102,60]
[424656299,1781034679000,-150.0,0.00033102,2]
[424656295,1781034679000,-800.0,0.00033102,60]
[424656300,1781034679000,-7552.33770885,0.00033102,2]
[424656301,1781034679000,-500.0,0.00033102,30]
[424656303,1781034679000,-500.0,0.00033102,30]
[424656297,1781034679000,-150.0,0.00033102,2]
[424656311,1781034679000,-426.27566652,0.00033123,120]
[424656312,1781034679000,-340.78390582,0.00033123,120]
[424656305,1781034679000,-2110.0,0.00033102,2]
[424656372,1781034680000,-658.31,0.000333,20]
[424656365,1781034680000,-31486.35,0.000333,2]
[424656377,1781034680000,-151.0,0.000333,7]
[424656375,1781034680000,-186.921122,0.000333,7]
[424656374,1781034680000,-186.921122,0.000333,7]
[424656364,1781034680000,-6620.96,0.000333,2]
[424656371,1781034680000,-615.28,0.000333,30]
[424656369,1781034680000,-7156.52,0.000333,2]
[424656370,1781034680000,-32561.01,0.000333,2]
[424656386,1781034680000,-4465.0,0.00033366,30]
[424656379,1781034680000,-697.0,0.00033305,30]
[424656373,1781034680000,-186.921122,0.000333,7]
[424656376,1781034680000,-186.921123,0.000333,7]
[424656384,1781034680000,-700.0,0.00033366,30]
[424656381,1781034680000,-500.0,0.00033315,2]
[424656382,1781034680000,-152.0,0.00033318,20]
[424656380,1781034680000,-839.0,0.00033305,30]
[424656383,1781034680000,-2324.0,0.0003332,11]
[424656388,1781034680000,-562.0,0.00033372,30]
[424656391,1781034680000,-653.0,0.00033373,30]
[424656393,1781034680000,-735.0,0.00033373,30]
[424656390,1781034680000,-817.0,0.00033372,30]
[424656392,1781034680000,-3344.0,0.00033373,30]
[424656385,1781034680000,-2256.0,0.00033366,30]
[424656389,1781034680000,-2206.0,0.00033372,30]
[424656378,1781034680000,-199.974138,0.000333,7]
[424656368,1781034680000,-17891.31,0.000333,2]
[424656338,1781034680000,-1339.97244845,0.0003316,2]
[424656363,1781034680000,-6620.96,0.000333,2]
[424656348,1781034680000,-500.0,0.00033177,30]
[424656340,1781034680000,-1191.3017384,0.0003316,2]
[424656337,1781034680000,-3579.46521487,0.0003316,2]
[424656339,1781034680000,-1173.26234436,0.0003316,2]
[424656341,1781034680000,-1205.63034059,0.00033165,2]
[424656342,1781034680000,-1191.33179655,0.00033165,2]
[424656347,1781034680000,-500.0,0.00033177,30]
[424656343,1781034680000,-152.0,0.00033166,30]
[424656346,1781034680000,-500.0,0.00033177,30]
[424656344,1781034680000,-1218.693829,0.00033177,120]
[424656345,1781034680000,-500.0,0.00033177,30]
[424656349,1781034680000,-500.0,0.00033177,30]
[424656350,1781034680000,-500.0,0.00033177,30]
[424656351,1781034680000,-500.0,0.00033177,30]
[424656356,1781034680000,-6465.80478824,0.00033238,30]
[424656355,1781034680000,-150.0,0.00033226,2]
[424656352,1781034680000,-500.0,0.00033177,30]
[424656354,1781034680000,-1117.99783885,0.00033211,2]
[424656353,1781034680000,-2860.79333022,0.00033211,2]
[424656359,1781034680000,-350.0,0.00033262,28]
[424656357,1781034680000,-2024.08696035,0.00033238,30]
[424656358,1781034680000,-3328.71680134,0.00033238,30]
[424656361,1781034680000,-1059.28,0.00033295,30]
[424656360,1781034680000,-970.53,0.00033295,30]
[424656362,1781034680000,-65473.96,0.000333,2]
[424656366,1781034680000,-6620.96,0.000333,2]
[424656387,1781034680000,-781.0,0.00033372,30]
[424656367,1781034680000,-6620.97,0.000333,2]
[424656396,1781034680000,-2324.0,0.00033384,11]
[424656425,1781034680000,-150.956,0.00033788,2]
[424656428,1781034680000,-6620.96,0.000338,2]
[424656438,1781034680000,-150.0,0.00033815,2]
[424656427,1781034680000,-65473.96,0.000338,2]
[424656430,1781034680000,-31486.35,0.000338,2]
[424656429,1781034680000,-6620.96,0.000338,2]
[424656437,1781034680000,-69293.59865468,0.000338,10]
[424656434,1781034680000,-7156.52,0.000338,2]
[424656433,1781034680000,-17891.31,0.000338,2]
[424656431,1781034680000,-6620.96,0.000338,2]
[424656436,1781034680000,-30000.0,0.000338,2]
[424656432,1781034680000,-6620.97,0.000338,2]
[424656440,1781034680000,-150.0,0.00033815,2]
[424656450,1781034680000,-6465.80478824,0.00033953,30]
[424656442,1781034680000,-150.0,0.00033815,2]
[424656441,1781034680000,-150.0,0.00033815,2]
[424656439,1781034680000,-150.0,0.00033815,2]
[424656443,1781034680000,-1325.66,0.00033833,30]
[424656445,1781034680000,-179.97120458,0.00033838,2]
[424656444,1781034680000,-397.69,0.00033833,2]
[424656448,1781034680000,-500.0,0.00033924,60]
[424656447,1781034680000,-800.0,0.00033924,60]
[424656446,1781034680000,-1239.81,0.000339,60]
[424656449,1781034680000,-83615.30593321,0.0003395,7]
[424656394,1781034680000,-1271.0,0.00033373,30]
[424656423,1781034680000,-150.0,0.00033788,2]
[424656426,1781034680000,-308.08478718,0.000338,120]
[424656435,1781034680000,-32561.01,0.000338,2]
[424656424,1781034680000,-150.0,0.00033788,2]
[424656417,1781034680000,-2000.0,0.00033682,7]
[424656397,1781034680000,-2324.0,0.00033403,11]
[424656398,1781034680000,-1000.0,0.00033424,120]
[424656399,1781034680000,-166.6875,0.00033425,2]
[424656395,1781034680000,-343.0,0.00033373,30]
[424656400,1781034680000,-202.700081,0.0003343,14]
[424656404,1781034680000,-343.19,0.00033479,120]
[424656401,1781034680000,-8805.7778071,0.00033433,2]
[424656403,1781034680000,-1189.615088,0.00033477,120]
[424656406,1781034680000,-1236.1098369,0.000335,2]
[424656407,1781034680000,-15044.69900198,0.0003351,120]
[424656409,1781034680000,-1758.26999999,0.00033562,30]
[424656408,1781034680000,-954.36,0.00033523,30]
[424656402,1781034680000,-518.433642,0.00033445,120]
[424656419,1781034680000,-200.0,0.00033701,60]
[424656405,1781034680000,-179.97120458,0.0003349,2]
[424656421,1781034680000,-150.337563,0.00033756,2]
[424656420,1781034680000,-1752.0,0.00033744,11]
[424656422,1781034680000,-1160.937434,0.00033777,120]
[424656416,1781034680000,-300.0,0.00033651,14]
[424656418,1781034680000,-2657.0,0.000337,7]
[424656414,1781034680000,-6426.36,0.00033623,14]
[424656410,1781034680000,-6465.80478824,0.00033596,30]
[424656411,1781034680000,-2024.08696035,0.00033596,30]
[424656415,1781034680000,-500.0,0.00033631,120]
[424656413,1781034680000,-2110.0,0.00033602,2]
[424656412,1781034680000,-3328.71680134,0.00033596,30]
[424656484,1781034681000,-500.0,0.00034,14]
[424656493,1781034681000,-500.1,0.00034053,31]
[424656491,1781034681000,-500.1,0.00034053,31]
[424656490,1781034681000,-500.1,0.00034053,31]
[424656485,1781034681000,-500.0,0.00034,14]
[424656481,1781034681000,-500.0,0.00034,14]
[424656483,1781034681000,-500.0,0.00034,14]
[424656488,1781034681000,-205.77743838,0.00034012,120]
[424656489,1781034681000,-2324.0,0.00034037,11]
[424656482,1781034681000,-500.0,0.00034,14]
[424656492,1781034681000,-500.1,0.00034053,31]
[424656486,1781034681000,-500.0,0.00034,14]
[424656497,1781034681000,-500.1,0.00034053,31]
[424656502,1781034681000,-1777.76,0.00034102,2]
[424656500,1781034681000,-160.0,0.00034064,11]
[424656495,1781034681000,-500.1,0.00034053,31]
[424656494,1781034681000,-500.1,0.00034053,31]
[424656498,1781034681000,-500.1,0.00034053,31]
[424656499,1781034681000,-2324.0,0.00034064,11]
[424656505,1781034681000,-1045.39,0.00034126,8]
[424656501,1781034681000,-1132.660868,0.00034078,120]
[424656503,1781034681000,-575.95,0.00034126,8]
[424656511,1781034681000,-182.600014,0.00034186,5]
[424656508,1781034681000,-2299.9,0.0003413,120]
[424656506,1781034681000,-235977.3,0.00034126,8]
[424656504,1781034681000,-76405.01,0.00034126,8]
[424656496,1781034681000,-500.1,0.00034053,31]
[424656487,1781034681000,-392.1,0.00034,14]
[424656451,1781034681000,-2024.08696035,0.00033953,30]
[424656478,1781034681000,-500.0,0.00034,14]
[424656507,1781034681000,-76522.9531194,0.0003413,6]
[424656452,1781034681000,-3328.71680134,0.00033953,30]
[424656453,1781034681000,-152.0,0.00033971,21]
[424656463,1781034681000,-160.0,0.00034,120]
[424656454,1781034681000,-166.6875,0.00033973,2]
[424656457,1781034681000,-1000.0,0.00034,120]
[424656461,1781034681000,-74850.57955877,0.00034,7]
[424656456,1781034681000,-158.37811644,0.00033991,120]
[424656464,1781034681000,-4000.0,0.00034,14]
[424656458,1781034681000,-185.56449502,0.00034,30]
[424656455,1781034681000,-243.65864068,0.00033991,120]
[424656460,1781034681000,-200.0,0.00034,13]
[424656462,1781034681000,-160.0,0.00034,120]
[424656467,1781034681000,-1121.71,0.00034,30]
[424656465,1781034681000,-242353.06593888,0.00034,2]
[424656468,1781034681000,-33050.59388486,0.00034,2]
[424656469,1781034681000,-1281.01,0.00034,30]
[424656471,1781034681000,-500.0,0.00034,14]
[424656470,1781034681000,-750.0,0.00034,2]
[424656476,1781034681000,-500.0,0.00034,14]
[424656472,1781034681000,-500.0,0.00034,14]
[424656466,1781034681000,-49999.99999901,0.00034,2]
[424656473,1781034681000,-500.0,0.00034,14]
[424656477,1781034681000,-500.0,0.00034,14]
[424656474,1781034681000,-500.0,0.00034,14]
[424656475,1781034681000,-500.0,0.00034,14]
[424656479,1781034681000,-500.0,0.00034,14]
[424656480,1781034681000,-500.0,0.00034,14]
[424656509,1781034681000,-200.0,0.0003413,4]
[424656459,1781034681000,-18508.40247259,0.00034,2]
[424656512,1781034681000,-179.97120457,0.00034186,2]
[424656548,1781034681000,-2256.0,0.00034366,30]
[424656549,1781034681000,-4465.0,0.00034366,30]
[424656550,1781034681000,-781.0,0.00034372,30]
[424656544,1781034681000,-2024.08696035,0.0003431,30]
[424656547,1781034681000,-700.0,0.00034366,30]
[424656546,1781034681000,-343.19,0.00034329,120]
[424656552,1781034681000,-2206.0,0.00034372,30]
[424656551,1781034681000,-562.0,0.00034372,30]
[424656555,1781034681000,-3344.0,0.00034373,30]
[424656554,1781034681000,-653.0,0.00034373,30]
[424656562,1781034681000,-72311.77140806,0.000344,2]
[424656560,1781034681000,-2324.0,0.00034399,11]
[424656558,1781034681000,-343.0,0.00034373,30]
[424656570,1781034681000,-150.38322918,0.00034453,2]
[424656561,1781034681000,-775.73094123,0.000344,3]
[424656553,1781034681000,-817.0,0.00034372,30]
[424656557,1781034681000,-1271.0,0.00034373,30]
[424656559,1781034681000,-1104.785386,0.00034378,120]
[424656564,1781034681000,-3790.03085246,0.0003444,2]
[424656565,1781034681000,-407.0,0.00034453,2]
[424656563,1781034681000,-305.75381204,0.00034426,2]
[424656567,1781034681000,-407.0,0.00034453,2]
[424656566,1781034681000,-150.0,0.00034453,2]
[424656568,1781034681000,-150.0,0.00034453,2]
[424656571,1781034681000,-500.0,0.00034453,2]
[424656569,1781034681000,-407.0,0.00034453,2]
[424656510,1781034681000,-1599.6,0.00034182,7]
[424656543,1781034681000,-6465.80478824,0.0003431,30]
[424656539,1781034681000,-350.0,0.00034273,36]
[424656556,1781034681000,-735.0,0.00034373,30]
[424656545,1781034681000,-3328.71680134,0.0003431,30]
[424656519,1781034681000,-1147.24597396,0.00034211,2]
[424656541,1781034681000,-697.0,0.00034305,30]
[424656515,1781034681000,-446.67,0.000342,60]
[424656518,1781034681000,-557.24,0.000342,30]
[424656514,1781034681000,-300.0,0.00034199,14]
[424656524,1781034681000,-500.0,0.00034246,120]
[424656522,1781034681000,-2500.0,0.00034218,2]
[424656517,1781034681000,-658.31,0.000342,60]
[424656513,1781034681000,-150.0,0.0003419,2]
[424656523,1781034681000,-500.0,0.00034246,120]
[424656520,1781034681000,-5416.0,0.00034211,2]
[424656521,1781034681000,-1466.15,0.00034214,2]
[424656526,1781034681000,-500.0,0.00034246,120]
[424656537,1781034681000,-151.0,0.00034264,2]
[424656516,1781034681000,-219.14,0.000342,60]
[424656527,1781034681000,-500.0,0.00034246,120]
[424656542,1781034681000,-839.0,0.00034305,30]
[424656540,1781034681000,-269470.601717,0.000343,2]
[424656536,1781034681000,-1758.27,0.00034247,30]
[424656538,1781034681000,-719.04747942,0.00034264,2]
[424656535,1781034681000,-195.81762037,0.00034247,2]
[424656531,1781034681000,-800.0,0.00034247,60]
[424656533,1781034681000,-600.0,0.00034247,120]
[424656530,1781034681000,-518.87459671,0.00034246,120]
[424656534,1781034681000,-1000.0,0.00034247,120]
[424656532,1781034681000,-800.0,0.00034247,90]
[424656525,1781034681000,-500.0,0.00034246,120]
[424656528,1781034681000,-500.0,0.00034246,120]
[424656529,1781034681000,-500.0,0.00034246,120]
[424656594,1781034682000,-566.33,0.000345,60]
[424656587,1781034682000,-557.24,0.000345,60]
[424656592,1781034682000,-220278.0683608,0.000345,2]
[424656595,1781034682000,-295.98,0.00034514,60]
[424656588,1781034682000,-362383.0438873,0.000345,2]
[424656590,1781034682000,-475766.150571,0.000345,2]
[424656599,1781034682000,-166.6875,0.00034521,2]
[424656606,1781034682000,-20508.29,0.00034544,60]
[424656608,1781034682000,-16103.29,0.00034544,60]
[424656601,1781034682000,-7067.75,0.0003453,3]
[424656607,1781034682000,-1864.76,0.00034544,60]
[424656602,1781034682000,-396.11,0.0003453,2]
[424656600,1781034682000,-25000.0,0.00034523,10]
[424656597,1781034682000,-25000.0,0.00034514,10]
[424656604,1781034682000,-25000.0,0.00034541,10]
[424656598,1781034682000,-163.15,0.00034521,120]
[424656593,1781034682000,-2604.7486874,0.000345,2]
[424656576,1781034682000,-44211.41935852,0.000345,30]
[424656591,1781034682000,-2915.585493,0.000345,2]
[424656603,1781034682000,-25000.0,0.00034532,10]
[424656573,1781034682000,-501.29599105,0.00034453,2]
[424656572,1781034682000,-500.0,0.00034453,2]
[424656585,1781034682000,-500.0,0.000345,14]
[424656581,1781034682000,-500.0,0.000345,14]
[424656578,1781034682000,-117530.953218,0.000345,2]
[424656580,1781034682000,-500.0,0.000345,14]
[424656596,1781034682000,-214.34,0.00034514,60]
[424656575,1781034682000,-433.0,0.0003449,10]
[424656577,1781034682000,-172.47838391,0.000345,120]
[424656579,1781034682000,-6490.4456403,0.000345,2]
[424656582,1781034682000,-500.0,0.000345,14]
[424656584,1781034682000,-500.0,0.000345,14]
[424656583,1781034682000,-500.0,0.000345,14]